[Event "44th Chess Olympiad Open 2022"]
[Site "Chennai"]
[Date "2022.08.01"]
[Round "4.37"]
[White "Lenaerts, Lennert"]
[Black "Ilkhomi, Jaloliddin"]
[Result "0-1"]
[WhiteElo "2379"]
[BlackElo "2076"]
[Annotator "TA"]
[PlyCount "72"]
[EventDate "2022.??.??"]
[TimeControl "60"]

{[%evp 15,72,15,21,14,15,7,7,5,5,5,5,6,46,37,34,-8,0,0,0,-74,14,-58,-12,-35,0,
0,25,0,14,13,106,89,96,17,29,22,33,0,15,7,221,223,277,246,529,279,583,401,400,
371,416,-729,-713,-1063,-907,-870,-587,-1184,-1115]} 1. e4 {[%emt 0:00:03]} e6
{[%emt 0:00:07]} 2. d4 {[%emt 0:00:16]} d5 {[%emt 0:00:12]} 3. Nc3 {[%emt 0:00:
00]} Bb4 {[%emt 0:00:09]} 4. e5 {[%emt 0:00:55]} c5 {[%emt 0:00:53]} 5. a3 {
[%emt 0:00:41]} Bxc3+ {[%emt 0:00:02]} 6. bxc3 {[%emt 0:00:04]} Qa5 {[%emt 0:
00:00]} 7. Bd2 {[%emt 0:01:32]} Qa4 {[%emt 0:00:34]} 8. Qb1 {[%emt 0:01:50]} c4
{[%emt 0:00:03]} 9. Be2 {[%emt 0:00:17] C18: French: 3 Nc3 Bb4: Main line: 7
h4 and 7 Qg4.} Ne7 {[%emt 0:01:04]} 10. h4 {[%emt 0:05:31]} Nbc6 {[%emt 0:00:
00]} 11. Bh5 {[%emt 0:09:13] The position is equal.} Bd7 {[%emt 0:09:55]} 12.
Ne2 {[%emt 0:02:16] [#]} (12. Qxb7 $2 Rb8 13. Qc7 Qxc2 $19) 12... h6 $146 {
[%emt 0:07:12]} ({Predecessor:} 12... b6 13. O-O Rf8 14. Bg4 O-O-O 15. Qb2 Kb7
16. Rfb1 h5 17. Bf3 f6 18. exf6 gxf6 {0-1 (42) Matusek,J (2245)-Schueppen,H 
(2407) ICCF email 2017}) 13. Nf4 {[%emt 0:05:17]} (13. Qxb7 Rb8 14. Qc7 Qxc2
$19) 13... g6 {[%emt 0:00:36]} 14. Be2 {[%emt 0:03:19]} (14. Qxb7 $2 Rb8 15.
Qc7 Qxc2 $19) 14... O-O-O {[%emt 0:00:19]} 15. h5 {[%emt 0:05:34]} g5 {[%emt 0:
00:00]} 16. Nh3 {[%emt 0:00:07]} Rdf8 {[%emt 0:01:02]} 17. f4 {[%emt 0:11:49]}
(17. Qb2 $11) 17... gxf4 {[%emt 0:02:28]} ({Better is} 17... Nf5 $17) 18. Nxf4
{[%emt 0:02:59]} ({White should play} 18. O-O $11) 18... Nf5 {[%emt 0:10:52]} (
18... Rhg8 $15 {feels stronger.}) 19. Rh3 $11 {[%emt 0:03:44]} Qa5 {[%emt 0:00:
00]} 20. a4 {[%emt 0:11:28]} Qc7 {[%emt 0:03:55]} 21. Qc1 {[%emt 0:01:05]} Rhg8
{[%emt 0:04:39]} 22. g4 {[%emt 0:02:31]} Nfxd4 {[%emt 0:00:32]} 23. cxd4 $16 {
[%emt 0:01:25]} Nxd4 {[%emt 0:00:12] [#]} 24. Bc3 {[%emt 0:03:43]} (24. Qb2 $1
$16 {[%cal Rb2d4]} Qxe5 25. Rb1) 24... Qxe5 $11 {[%emt 0:04:47]} 25. Qd2 $36 {
[%emt 0:03:50] White has good play.} Nxc2+ {[%emt 0:00:19]} 26. Qxc2 {[%emt 0:
04:27]} Qxf4 {[%emt 0:00:55]} 27. Qb2 {[%emt 0:00:01]} (27. Qd2 Qe4) 27... e5
$2 {[%emt 0:02:57]} (27... Rxg4 28. Bxg4 Qxg4 {[#]} 29. Qf2 $1 $14) (27... Bc6
$11 {and Black stays safe.}) 28. Bxe5 $18 {[%emt 0:00:57]} Qe4 {[%emt 0:00:09]
White must now prevent ...Re8.} 29. Kd2 {[%emt 0:02:39] Re3 is the strong
threat.} (29. Rb1 $2 Bc6 30. Bd4 Rxg4 $19) 29... Qg2 $2 {[%emt 0:00:00]} (29...
Re8 $2 30. Re3 Qg2 31. Qb4 (31. Rb1 Bc6 $18)) (29... d4 {keeps fighting.} 30.
Qxd4 Qxd4+ 31. Bxd4 Bxg4) 30. Qb4 {[%emt 0:06:43] White threatens Qc5+ and
mate.} f6 $2 {[%emt 0:03:15]} (30... Qxh3 {is a self mate.} 31. Qc5+ Bc6 32.
Qd6) (30... Re8 31. Re3 f6 32. Qc5+ Bc6) 31. Qc5+ {[%emt 0:00:00]} Bc6 {
[%emt 0:00:37]} 32. Rg3 {[%emt 0:01:03]} Qh2 {[%emt 0:02:30]} 33. Re3 {[%emt 0:
00:08]} fxe5 $19 {[%emt 0:00:30] Black is clearly winning.} 34. a5 {[%emt 0:01:
52]} a6 {[%emt 0:02:50] And now ...d4 would win.} 35. Rb1 {[%emt 0:00:20]} Qf4
{[%emt 0:00:12] Hoping for ...d4.} 36. Rxb7 {[%emt 0:00:05]} Qd4+ {[%emt 0:00:
08] Weighted Error Value: White=0.73/Black=0.78} ({And not} 36... Kxb7 37. Qb6+
Ka8 38. Qxc6+ Ka7 39. Qb6+ Ka8 40. Qc6+ Kb8 41. Qb6+ Kc8 42. Qc6+ Kd8 43. Qd6+
Ke8 44. Qe6+ Kd8 45. Qd6+ Ke8 46. Qe6+ Kd8 47. Qd6+ $11) 0-1

[Event "44th Chess Olympiad Open 2022"]
[Site "Chennai"]
[Date "2022.08.01"]
[Round "4.37"]
[White "Sharifov, Mekhriddin"]
[Black "Maerevoet, Sim"]
[Result "1/2-1/2"]
[WhiteElo "2097"]
[BlackElo "2409"]
[Annotator "TA"]
[PlyCount "82"]
[EventDate "2022.??.??"]
[TimeControl "60"]

{[%evp 22,82,20,12,37,0,11,11,7,12,20,8,12,11,11,9,10,8,29,7,17,1,6,0,0,0,9,0,
0,-2,-6,-22,-28,-28,-21,-34,-52,-78,-74,-52,-74,-91,-67,-91,0,0,0,0,0,-22,-13,
-15,-8,-8,-8,-8,-8,-9,0,0,0,0,0]} 1. e4 {[%emt 0:00:04]} c5 {[%emt 0:00:07]} 2.
Nf3 {[%emt 0:00:05]} e6 {[%emt 0:00:09]} 3. d4 {[%emt 0:00:04]} cxd4 {[%emt 0:
00:00]} 4. Nxd4 {[%emt 0:00:02]} Nf6 {[%emt 0:00:12]} 5. Nc3 {[%emt 0:00:06]}
Nc6 {[%emt 0:00:06]} 6. Ndb5 {[%emt 0:00:20]} d6 {[%emt 0:00:10]} 7. Bf4 {
[%emt 0:00:08]} e5 {[%emt 0:00:06]} 8. Bg5 {[%emt 0:00:27]} a6 {[%emt 0:00:06]}
9. Na3 {[%emt 0:00:03]} b5 {[%emt 0:00:06]} 10. Nd5 {[%emt 0:00:03]} Be7 {
[%emt 0:00:06]} 11. Bxf6 {[%emt 0:00:03]} Bxf6 {[%emt 0:00:05]} 12. c4 {
[%emt 0:00:10]} Nd4 {[%emt 0:00:13] 12...0-0 is the modern continuation. B33:
Sicilian: Pelikan and Sveshnikov Variations.} 13. Bd3 {[%emt 0:12:43][%cal
Rc4b5]} (13. cxb5 {seems wilder.} Be6 14. Bc4 axb5 15. Bxb5+ Kf8 16. Bc4) 13...
Be6 {[%emt 0:12:47]} 14. O-O {[%emt 0:13:41]} Bxd5 {[%emt 0:15:08]} 15. cxd5 {
[%emt 0:00:27]} O-O {[%emt 0:00:42]} 16. Nc2 {[%emt 0:01:43]} Qb6 {[%emt 0:00:
00]} 17. Nxd4 {[%emt 0:00:13]} Qxd4 {[%emt 0:00:07] [#]} 18. Qe2 $146 {[%emt 0:
00:00]} ({Predecessor:} 18. Qb3 Rfb8 19. Rac1 Rc8 20. Rc2 Rc5 21. Rxc5 dxc5 22.
Qc2 c4 23. Be2 Be7 24. Rd1 Qb6 25. b3 cxb3 26. axb3 {1-0 (37) Kadric,D (2418)
-Zhou,Y (2430) Prague 2012}) 18... Bg5 {[%emt 0:04:34]} 19. g3 {[%emt 0:10:58]}
g6 {[%emt 0:03:18]} 20. Rad1 {[%emt 0:10:31][%cal Yd3b5]} Qb6 {[%emt 0:02:37]}
({Don't play} 20... f5 21. exf5 gxf5 22. Bxf5 $1 $16) 21. h4 {[%emt 0:02:47]}
Bh6 {[%emt 0:01:23]} 22. Kg2 {[%emt 0:00:57]} Kg7 {[%emt 0:00:00]} 23. Qg4 {
[%emt 0:09:35]} Qa5 {[%emt 0:11:38]} 24. a3 {[%emt 0:12:41]} b4 {[%emt 0:02:24]
[%cal Yb5b4,Yb4a3]} 25. h5 {[%emt 0:02:42]} bxa3 {[%emt 0:01:02]} 26. hxg6 {
[%emt 0:01:20]} hxg6 {[%emt 0:00:27]} 27. Ra1 {[%emt 0:00:43]} a2 {[%emt 0:05:
16]} 28. Bc4 {[%emt 0:01:44]} Qb4 {[%emt 0:00:00][%csl Yb2,Yc4]} 29. b3 {
[%emt 0:01:03] [#]} a5 $1 {[%emt 0:00:28][%cal Ya6a5,Ya5a4,Ya4a3] Threatens to
win with ...a4.} 30. Rxa2 {[%emt 0:00:00]} a4 {[%emt 0:00:56]} 31. Rfa1 {
[%emt 0:03:51][%cal Ra2a4]} a3 {[%emt 0:00:00] Hoping for ...Bd2.} 32. Qe2 {
[%emt 0:00:32] Prevents Bd2.} f5 {[%emt 0:00:00]} (32... Rfb8 $17) 33. exf5 $11
{[%emt 0:02:18] The position is equal.} gxf5 {[%emt 0:00:41]} 34. Ba6 {[%emt 0:
02:24]} Qxb3 {[%emt 0:01:37]} 35. Qb5 {[%emt 0:00:15]} Qxb5 {[%emt 0:01:20]}
36. Bxb5 {[%emt 0:00:01]} Ra5 {[%emt 0:00:00]} 37. Bc6 {[%emt 0:00:10]} Kf6 {
[%emt 0:02:17]} 38. Rxa3 {[%emt 0:00:09]} Rxa3 {[%emt 0:00:07]} 39. Rxa3 {
[%emt 0:00:02]} Bd2 {[%emt 0:00:53]} 40. Ra8 {[%emt 0:01:22]} Rxa8 {[%emt 0:02:
29]} 41. Bxa8 {[%emt 0:30:09]} e4 {[%emt 0:00:00] Weighted Error Value:
White=0.08 (flawless) /Black=0.07 (flawless)} 1/2-1/2

[Event "44th Chess Olympiad Open 2022"]
[Site "Chennai"]
[Date "2022.08.01"]
[Round "4.38"]
[White "Cardoso Cardoso, Jose Gabriel"]
[Black "Lee, Jun Hyeok"]
[Result "1-0"]
[WhiteElo "2493"]
[BlackElo "2390"]
[Annotator "TA"]
[PlyCount "83"]
[EventDate "2022.??.??"]
[TimeControl "60"]

{[%evp 14,83,42,35,39,41,40,35,52,36,70,-10,48,50,67,29,73,0,30,38,96,107,104,
57,52,-23,10,0,0,0,0,0,134,96,70,73,64,-6,49,41,53,27,32,75,111,103,108,114,
391,149,126,92,101,99,274,45,248,245,250,216,424,416,460,448,648,626,2011,1260,
29990,29991,29991,29992]} 1. e4 {[%emt 0:00:04]} c5 {[%emt 0:00:16]} 2. Nf3 {
[%emt 0:00:25]} d6 {[%emt 0:00:35]} 3. d4 {[%emt 0:00:08]} cxd4 {[%emt 0:00:06]
} 4. Nxd4 {[%emt 0:00:07]} Nf6 {[%emt 0:00:09]} 5. Nc3 {[%emt 0:00:05]} a6 {
[%emt 0:00:06]} 6. Bg5 {[%emt 0:01:43]} Nc6 {[%emt 0:03:44]} 7. Qd2 {[%emt 0:
00:00]} Nxd4 {[%emt 0:00:40]} 8. Qxd4 {[%emt 0:00:10]} Qa5 {[%emt 0:00:06] B60:
Sicilian: Richter-Rauzer: Unusual Black 6th moves and 6...Bd7 without 7 Qd2.}
9. f4 {[%emt 0:06:52]} e5 {[%emt 0:10:19]} 10. Qd2 {[%emt 0:04:08]} Be7 {
[%emt 0:04:10] White is slightly better.} 11. O-O-O {[%emt 0:15:27]} Be6 {
[%emt 0:20:27]} 12. a3 {[%emt 0:07:25]} (12. Bxf6 $14 Bxf6 13. f5 (13. Qxd6 Rd8
$15)) 12... exf4 {[%emt 0:00:44]} (12... h6 $1 $11 13. Bxf6 Bxf6) 13. Bxf4 $14
{[%emt 0:00:11] [#]} Rd8 $146 {[%emt 0:11:24]} ({Predecessor:} 13... O-O 14.
Nd5 Qxd2+ 15. Rxd2 Bxd5 16. exd5 Rfe8 17. Rd4 Ng4 18. Be2 Bf6 19. Rd2 Be5 20.
Bg5 Nf2 21. Re1 Ne4 {0-1 (21) Stachanczyk,J (2328)-Yuffa,D (2302) Olomouc 2011}
) 14. Bd3 {[%emt 0:08:33]} d5 {[%emt 0:14:41] [#]} 15. Qe1 {[%emt 0:08:03]} (
15. Nxd5 $1 $16 Qxd2+ 16. Bxd2) 15... dxe4 {[%emt 0:07:19]} 16. Nxe4 {[%emt 0:
00:00]} Qa4 {[%emt 0:03:41]} (16... Qxe1 $14 17. Rdxe1 Nd5) 17. Be5 $16 {
[%emt 0:05:08]} O-O {[%emt 0:10:52][%cal Yd8d3] [#]} 18. Qg3 $1 {[%emt 0:15:49]
} Ng4 $14 {[%emt 0:01:36][%cal Yd8d3]} 19. Bc7 {[%emt 0:03:19]} (19. Bd6 $1 $14
Bxd6 20. Nxd6) 19... Rd7 {[%emt 0:00:57][%cal Ye7a3] aiming for ...Bxa3!} (
19... Rxd3 $5 20. Qxd3 Qc6 $11) 20. h3 {[%emt 0:00:39]} Ne3 {[%emt 0:07:45]}
21. Be5 {[%emt 0:02:04][%csl Ge5][%cal Rg3g7]} Nf5 {[%emt 0:00:20]} 22. Qg4 {
[%emt 0:02:12]} Qc6 {[%emt 0:00:09]} (22... b5 $1 $11) 23. Nf6+ {[%emt 0:00:12]
} Bxf6 {[%emt 0:00:17]} 24. Bxf6 {[%emt 0:00:02]} g6 {[%emt 0:01:03] And now ..
.Ne3 would win.} 25. Qf4 {[%emt 0:06:16] Against Ne3} ({White should play} 25.
Be4 $14 Qc7 26. Qg5) 25... Rc8 {[%emt 0:00:34]} ({Better is} 25... Qxg2 $11 26.
Be4 Qg3) 26. Bc3 $40 {[%emt 0:02:57] Qe5 is the strong threat. White mounts an
attack. This bishop pair is nice.} Qxg2 {[%emt 0:00:54][%cal Yd7d3]} 27. Qe5 {
[%emt 0:01:53][%csl Gc3][%cal Re5h8]} Rxc3 $1 {[%emt 0:00:12]} 28. Qxc3 {
[%emt 0:00:11]} Ne3 {[%emt 0:00:24]} 29. Rde1 {[%emt 0:00:37]} Nd5 {[%emt 0:00:
57]} 30. Qe5 {[%emt 0:01:25]} Rc7 $2 {[%emt 0:00:30]} (30... Ne7 $16) 31. h4 $2
{[%emt 0:03:05] The board is on fire.} (31. Rhf1 $18 {is the precise move to
win.}) 31... Qf2 $16 {[%emt 0:00:30]} 32. Kb1 {[%emt 0:00:00] Strongly
threatening h5.} Qf4 {[%emt 0:00:25]} 33. Rhf1 {[%emt 0:01:11]} Qxh4 {[%emt 0:
00:35]} (33... Qxe5 $16 34. Rxe5 Kg7) 34. Be4 $2 {[%emt 0:00:56]} ({White
should try} 34. c4 $18 Qh3 35. Rd1 (35. cxd5 $2 Qxd3+ 36. Ka1 Qxd5 $19) (35.
Qd4 Rd7 $11)) 34... Rc5 {[%emt 0:00:28] [#]} (34... Rd7 $14) 35. Qb8+ $1 $18 {
[%emt 0:01:54]} Rc8 {[%emt 0:00:31]} 36. Qxb7 {[%emt 0:00:01]} Qd8 {[%emt 0:00:
26]} (36... Rd8 37. Qxa6 Qe7) 37. Rd1 {[%emt 0:01:29]} Rc5 {[%emt 0:00:00]} 38.
c4 {[%emt 0:00:39] Against Rb5} Nc3+ {[%emt 0:00:57]} (38... Qe7 $142 39. Bxd5
Qxb7 40. Bxb7 Bxc4) 39. bxc3 {[%emt 0:00:04]} Qh4 {[%emt 0:00:26]} 40. Bd5 {
[%emt 0:01:02]} Bxd5 {[%emt 0:00:37]} 41. Rxd5 {[%emt 0:30:30]} Qe4+ {[%emt 0:
30:13]} 42. Ka1 {[%emt 0:00:04] Weighted Error Value: White=0.42/ Black=0.83}
1-0

[Event "44th Chess Olympiad Open 2022"]
[Site "Chennai"]
[Date "2022.08.01"]
[Round "4.38"]
[White "Sanchez, Sebastian Felipe"]
[Black "Ahn, Hongjin"]
[Result "1-0"]
[WhiteElo "2440"]
[BlackElo "2303"]
[Annotator "TA"]
[PlyCount "119"]
[EventDate "2022.??.??"]
[TimeControl "60"]

{[%evp 13,119,18,21,19,22,6,12,37,34,-24,-36,-25,-30,-22,-21,-43,44,38,44,52,
54,54,46,43,56,47,73,37,60,64,65,55,104,58,58,55,56,35,81,24,12,16,59,54,53,52,
51,31,37,41,37,39,56,35,49,49,72,66,108,103,93,90,90,90,108,102,102,104,104,94,
104,63,63,63,670,668,658,638,508,487,2546,2137,29960,6299,29971,29972,29974,
29975,29974,29973,29975,29974,29975,29976,29987,29976,29987,29979,29979,29980,
29980,29981,29989,29990,29990,29991,29991,29992]} 1. d4 {[%emt 0:00:03]} d5 {
[%emt 0:00:27]} 2. c4 {[%emt 0:01:33]} e6 {[%emt 0:00:15]} 3. Nf3 {[%emt 0:00:
00]} Nf6 {[%emt 0:00:10]} 4. g3 {[%emt 0:00:11]} Be7 {[%emt 0:00:05]} 5. Bg2 {
[%emt 0:00:14]} O-O {[%emt 0:00:07]} 6. O-O {[%emt 0:01:12]} dxc4 {[%emt 0:00:
00]} 7. Qc2 {[%emt 0:00:07]} b5 {[%emt 0:00:21]} 8. a4 {[%emt 0:00:17] E05:
Open Catalan: 5 Nf3 Be7.} b4 {[%emt 0:00:09]} 9. Nfd2 {[%emt 0:00:30]} Nd5 {
[%emt 0:01:11]} 10. Nxc4 {[%emt 0:02:02] The position is equal.} c5 {[%emt 0:
00:00]} 11. Ne3 {[%emt 0:19:59] [#]} (11. dxc5 $14 Bxc5 12. b3) 11... cxd4 $146
{[%emt 0:03:26]} ({Predecessor:} 11... Ba6 12. dxc5 Nd7 13. Nxd5 exd5 14. Bxd5
Rc8 15. c6 Ne5 16. Rd1 Nxc6 17. Qe4 Qe8 {1-0 (70) Zakhartsov,V (2483)-Abrekov,
M (2133) Obninsk 2022}) 12. Nxd5 {[%emt 0:00:04]} exd5 {[%emt 0:00:15]} 13. Nd2
{[%emt 0:00:02]} Ba6 {[%emt 0:16:25]} 14. Nb3 {[%emt 0:01:25] [#]} d3 {[%emt 0:
00:00]} (14... Nc6 $1 $15) 15. exd3 $14 {[%emt 0:00:09]} Nd7 {[%emt 0:00:14]}
16. Bf4 {[%emt 0:07:07][%cal Yc1f4,Yf4e5,Ye5d4]} Rc8 {[%emt 0:00:43] Prevents
Bc7.} 17. Qd2 {[%emt 0:00:00]} Nc5 {[%emt 0:05:00]} 18. Nxc5 {[%emt 0:00:00]}
Bxc5 {[%emt 0:01:34]} 19. Rfe1 {[%emt 0:09:58]} Be7 {[%emt 0:26:55]} 20. Be5 {
[%emt 0:15:22] White is more active.} Qd7 {[%emt 0:01:40]} 21. Bd4 {[%emt 0:00:
56]} Rfd8 {[%emt 0:05:09]} 22. Re5 {[%emt 0:13:31]} Qb7 {[%emt 0:00:00]} (22...
Qc7 $14) 23. Bh3 {[%emt 0:05:42]} (23. Rae1 $16 Rc7 24. R5e2) 23... Bf6 {
[%emt 0:09:43]} 24. Bxc8 {[%emt 0:03:09]} Qxc8 {[%emt 0:02:44]} 25. Rc1 {
[%emt 0:01:02]} Qg4 {[%emt 0:01:17] [#]} (25... Qd7 $14 {deserves
consideration.}) 26. Qe3 {[%emt 0:01:51]} (26. Qxb4 $1 $16 {[%cal Yh2h3]
aiming for h3!} Bxe5 27. Qe7) 26... Bxe5 $11 {[%emt 0:00:19]} 27. Qxe5 {
[%emt 0:00:04] Strongly threatening Rc6.} h6 {[%emt 0:04:39]} 28. f3 {[%emt 0:
00:00]} Qg5 {[%emt 0:00:36]} 29. Qxg5 {[%emt 0:03:23]} hxg5 $14 {[%emt 0:00:02]
Endgame KRB-KRB} 30. Rd1 {[%emt 0:00:18]} Rd7 {[%emt 0:02:07]} 31. Kf2 {
[%emt 0:00:05]} Rc7 {[%emt 0:01:03]} 32. Ke3 {[%emt 0:00:32]} f6 {[%emt 0:00:
00]} 33. b3 {[%emt 0:01:18]} Kf7 {[%emt 0:05:07]} 34. Kd2 {[%emt 0:00:08]} Ke6
{[%emt 0:02:06]} 35. Rh1 {[%emt 0:00:55]} Kd6 {[%emt 0:01:46]} 36. h4 $1 {
[%emt 0:00:20]} gxh4 {[%emt 0:00:32]} 37. Rxh4 {[%emt 0:00:06]} Bc8 {[%emt 0:
00:00]} 38. Be3 {[%emt 0:01:49] And now Bf4+ would win.} Rb7 {[%emt 0:00:03] 
[#]} 39. Rh8 $1 {[%emt 0:01:21]} Be6 {[%emt 0:01:22][%cal Yd5d4]} 40. Bd4 {
[%emt 0:01:00]} Kc6 {[%emt 0:02:28]} 41. Ra8 {[%emt 0:31:39]} Rc7 {[%emt 0:00:
00]} 42. Rxa7 {[%emt 0:02:09]} ({Avoid the trap} 42. Bxa7 $2 Kb7 43. Re8 Bf7
44. Rb8+ Kxa7 $19) 42... Rxa7 {[%emt 0:00:24]} 43. Bxa7 $16 {[%emt 0:00:06] d4
is the strong threat. KB-KB} Bf7 $2 {[%emt 0:00:00] [#] This move loses the
game for Black.} (43... d4 $14) 44. d4 $1 $18 {[%emt 0:00:00]} Bh5 {[%emt 0:00:
00]} 45. g4 {[%emt 0:00:00]} Bg6 {[%emt 0:00:00]} 46. Bc5 {[%emt 0:00:00]} Bb1
{[%emt 0:00:00]} (46... f5 $142 47. g5 Be8 48. Bxb4 Bd7) 47. Bxb4 {[%emt 0:00:
00]} f5 {[%emt 0:00:00]} 48. Bc5 {[%emt 0:00:00] Threatening mate with b4.}
fxg4 {[%emt 0:00:00]} 49. fxg4 {[%emt 0:00:00] White mates.} Kb7 {[%emt 0:00:
00]} 50. b4 {[%emt 0:00:00]} Ka6 {[%emt 0:00:00]} 51. Bf8 {[%emt 0:00:00]} g6 {
[%emt 0:00:00]} 52. Be7 {[%emt 0:00:00]} Be4 {[%emt 0:00:00]} 53. b5+ {[%emt 0:
00:00]} Kb7 {[%emt 0:00:00]} 54. Kc3 {[%emt 0:00:00]} g5 {[%emt 0:00:00]} 55.
Kb4 {[%emt 0:00:00]} Bf3 {[%emt 0:00:00]} 56. a5 {[%emt 0:00:00][%cal Ya4a5,
Ya5a6]} Bxg4 {[%emt 0:00:00]} 57. a6+ {[%emt 0:00:00]} Kb6 {[%emt 0:00:00]} 58.
Bc5+ {[%emt 0:00:00]} Kc7 {[%emt 0:00:00]} 59. b6+ {[%emt 0:00:00][%cal Yb5b6,
Yb6b7]} Kc6 {[%emt 0:00:00]} 60. b7 {[%emt 0:00:00] Weighted Error Value:
White=0.09 (flawless) /Black=0.52} 1-0